bitfinex/quotes_SOLUSD_20250118
["timestamp","ask_amount","ask_price","bid_price","bid_amount"]
[1737215052428,1.0,253.85,253.75,21.30278374]
[1737215052626,1.0,253.85,253.77,21.30278374]
[1737215052827,1.0,253.85,253.73,21.30278374]
[1737215053236,1.0,253.85,253.79,21.30278374]
[1737215053435,1.0,253.85,253.81,21.30278374]
[1737215053634,1.0,253.85,253.75,21.30278374]
[1737215053935,21.30278374,253.81,253.55,0.5911935]
[1737215054238,21.30278374,253.81,253.68,21.30278374]
[1737215054443,21.30278374,253.79,253.68,21.30278374]
[1737215054644,23.776884,253.8,253.52,0.59137003]
[1737215054645,21.30278374,253.7,253.52,0.59137003]
[1737215054825,21.30278374,253.57,253.5,15.766884]
[1737215055026,21.30278374,253.52,253.38,13.0444]
[1737215055341,15.766884,253.73,253.39,21.30278374]
[1737215055342,21.30278374,253.53,253.39,21.30278374]
[1737215055536,21.30278374,253.51,253.39,21.89471934]
[1737215055731,21.30278374,253.55,253.42,21.30278374]
[1737215055934,21.30278374,253.5,253.38,34.34718374]
[1737215056141,21.30278374,253.52,253.4,21.30278374]
[1737215056324,21.30278374,253.56,253.44,21.30278374]
[1737215056526,21.30278374,253.62,253.5,21.30278374]
[1737215056731,21.30278374,253.56,253.44,21.30278374]
[1737215057038,21.30278374,253.56,253.44,7.60055683]
[1737215057228,21.30278374,253.59,253.46,21.30278374]
[1737215057428,21.30278374,253.55,253.44,21.30278374]
[1737215057629,21.30278374,253.55,253.38,13.0444]
[1737215057630,21.30278374,253.51,253.32,3.3056]
[1737215057828,15.780259,253.68,253.46,21.30278374]
[1737215058129,63.83480506,253.55,253.42,21.30278374]
[1737215058328,95.74949897,253.55,253.48,21.30278374]
[1737215058536,95.74949897,253.55,253.46,21.30278374]
[1737215058754,95.74949897,253.55,253.4,21.30278374]
[1737215058960,21.30278374,253.49,253.36,21.30278374]
[1737215059258,21.30278374,253.43,253.32,21.30278374]
[1737215059638,0.74009337,253.42,253.39,21.30278374]
[1737215059950,7.98262164,253.42,253.41,21.30278374]
[1737215060455,7.98262164,253.42,253.26,0.59181874]
[1737215060456,7.98262164,253.42,253.4,21.30278374]
[1737215060639,7.98262164,253.42,253.38,21.30278374]
[1737215060837,0.73990094,253.41,253.38,21.30278374]
[1737215061032,7.98262164,253.42,253.24,20.0]
[1737215061233,21.30278374,253.51,253.39,21.30278374]
[1737215061445,0.73990928,253.5,253.39,21.30278374]
[1737215061955,0.73990928,253.5,253.44,21.30278374]
[1737215062157,22.04257878,253.54,253.42,21.30278374]
[1737215062350,21.30278374,253.52,253.4,21.30278374]
[1737215062651,21.30278374,253.42,253.3,21.30278374]
[1737215062837,0.7401545,253.41,253.28,21.30278374]
[1737215063042,0.7401545,253.41,253.2,21.30278374]
[1737215063043,0.7401545,253.41,253.34,21.30278374]
[1737215063250,0.73999689,253.45,253.39,21.30278374]
[1737215063456,0.6106825,253.5,253.39,21.30278374]
[1737215063633,21.30278374,253.47,253.35,21.30278374]
[1737215063838,0.74000572,253.46,253.35,21.30278374]
[1737215064040,21.30278374,253.45,253.43,1.0]
[1737215064259,0.74007511,253.44,253.43,1.0]
[1737215064432,0.73995738,253.48,253.43,1.0]
[1737215064836,0.73995738,253.48,253.46,21.30278374]
[1737215065045,21.30278374,253.53,253.43,1.0]
[1737215065239,21.30278374,253.49,253.43,1.0]
[1737215065552,0.74000994,253.48,253.43,1.0]
[1737215065753,0.73982463,253.52,253.43,1.0]
[1737215066345,22.04260837,253.52,253.43,1.0]
[1737215066656,0.73982463,253.52,253.46,41.30278374]
[1737215066950,0.7397554,253.51,253.43,1.0]
[1737215067156,21.30278374,253.46,253.43,1.0]
[1737215067333,45.07966774,253.44,253.43,1.0]
[1737215067538,56.97966774,253.44,253.43,1.0]
[1737215068051,0.74035715,253.49,253.43,1.0]
[1737215068255,21.30278374,253.45,253.43,1.0]
[1737215068558,0.74019684,253.44,253.43,22.30278374]
[1737215068736,21.30278374,253.5,253.43,1.0]
[1737215069057,0.74004693,253.64,253.43,1.0]
[1737215069551,73.4793818,253.55,253.54,21.30278374]
[1737215069755,23.70710542,253.65,253.57,20.0]
[1737215070054,23.70710542,253.65,253.64,21.30278374]
[1737215070636,23.70710542,253.65,253.62,21.30278374]
[1737215071042,23.70710542,253.65,253.64,21.30278374]
[1737215071247,23.70710542,253.65,253.64,42.60556748]
[1737215071449,23.70710542,253.65,253.64,21.30278374]
[1737215071846,23.70710542,253.65,253.64,42.60556748]
[1737215072153,15.761253,254.02,253.68,43.776884]
[1737215072362,15.761253,254.02,253.65,36.562784]
[1737215072363,21.30278374,254.11,253.99,21.30278374]
[1737215072537,21.30278374,254.07,253.97,21.30278374]
[1737215072737,21.9143811,254.06,253.95,21.30278374]
[1737215072956,21.9143811,254.06,253.96,21.30278374]
[1737215073265,21.9143811,254.06,253.95,21.30278374]
[1737215073449,15.88975683,254.24,253.99,21.30278374]
[1737215073450,6.05655683,254.24,253.99,21.30278374]
[1737215073639,21.30278374,254.19,253.99,21.30278374]
[1737215073850,0.61159736,254.18,253.99,21.30278374]
[1737215074040,21.30278374,254.17,253.99,21.30278374]
[1737215074358,0.61159736,254.16,253.99,21.30278374]
[1737215074564,0.61159736,254.23,254.15,21.30278374]
[1737215074855,0.61159736,254.23,254.04,21.30278374]
[1737215074856,21.30278374,254.17,254.04,21.30278374]
[1737215075042,0.61159736,254.16,254.02,21.30278374]
[1737215075243,0.61159736,254.24,254.03,21.30278374]
[1737215075447,21.30278374,254.15,254.01,21.30278374]
[1737215075669,21.30278374,254.08,253.95,21.30278374]
[1737215075955,0.61159736,254.07,253.98,20.0]
[1737215076165,21.30278374,254.03,253.85,0.59057833]
[1737215076455,21.30278374,253.97,253.84,21.30278374]
[1737215076659,0.61159736,253.96,253.88,21.30278374]
[1737215076837,0.61159736,254.0,253.92,21.30278374]
[1737215077039,21.30278374,254.12,253.99,21.30278374]
[1737215077253,21.30278374,254.16,254.02,21.30278374]
[1737215077445,21.30278374,254.14,254.02,21.30278374]
[1737215077655,21.30278374,254.18,254.09,20.0]
[1737215077860,21.30278374,254.13,254.0,21.30278374]
[1737215078045,21.30278374,254.11,254.08,22.03444153]
[1737215078246,21.30278374,254.09,254.08,22.03444153]
[1737215078556,21.30278374,254.1,254.08,22.03444153]
[1737215078743,21.30278374,254.12,254.08,22.03444153]
[1737215079157,3.9332,254.24,254.08,22.03444153]
[1737215079348,21.30278374,254.09,254.08,22.03444153]
[1737215079548,11.9,254.23,253.99,21.30278374]
[1737215079749,21.30278374,254.05,253.92,21.30278374]
[1737215079945,21.30278374,254.05,253.93,0.59072747]
[1737215080161,21.30278374,253.98,253.86,21.30278374]
[1737215080364,21.30278374,254.0,253.88,21.30278374]
[1737215080673,21.30278374,254.02,253.9,21.30278374]
[1737215080958,21.30278374,254.14,254.01,21.30278374]
[1737215081166,21.30278374,254.17,254.04,21.30278374]
[1737215081371,21.30278374,254.11,253.98,21.30278374]
[1737215081542,21.30278374,254.16,254.04,21.30278374]
[1737215081743,21.30278374,254.14,254.02,21.30278374]
[1737215081960,21.30278374,254.12,253.98,21.30278374]
[1737215082250,21.30278374,254.14,254.01,20.0]
[1737215082565,3.9332,254.24,254.01,20.0]
[1737215082861,21.30278374,254.05,253.92,21.30278374]
[1737215083058,21.30278374,254.11,253.98,21.30278374]
[1737215083441,20.30278374,254.09,253.98,21.30278374]
[1737215083657,21.30278374,254.07,253.95,21.30278374]
[1737215083948,21.30278374,254.01,253.88,21.30278374]
[1737215084153,21.30278374,254.03,253.9,21.30278374]
[1737215084459,21.30278374,254.05,253.92,21.30278374]
[1737215084661,21.30278374,254.07,253.94,21.30278374]
[1737215085263,21.30278374,254.07,253.82,0.59067319]
[1737215085264,21.30278374,254.05,253.92,21.30278374]
[1737215085571,0.03,254.02,253.97,21.30278374]
[1737215086064,0.03,254.02,254.01,20.0]
[1737215086245,0.03,254.02,254.01,41.30278374]
[1737215086656,0.03,254.02,253.99,21.30278374]
[1737215087139,0.03,254.02,253.93,21.30278374]
[1737215087347,21.33278374,254.02,253.89,21.30278374]
[1737215087538,0.03,254.02,253.91,21.30278374]
[1737215087949,0.03,254.02,253.96,21.30278374]
[1737215088141,0.03,254.02,254.0,21.30278374]
[1737215088358,0.03,254.02,254.01,0.59055066]
[1737215088660,0.03,254.02,254.01,21.89316324]
[1737215088838,0.03,254.02,254.01,21.30278374]
[1737215089039,0.03,254.02,253.86,0.59048169]
[1737215089245,0.03,254.02,254.01,21.30278374]
[1737215090558,0.03,254.02,253.99,21.30278374]
[1737215090867,0.03,254.02,254.01,21.30278374]
[1737215093568,0.473993,254.24,254.02,23.776884]
[1737215093768,0.473993,254.24,254.23,21.30278374]
[1737215096461,0.473993,254.24,254.21,21.30278374]
[1737215096669,0.473993,254.24,254.19,21.30278374]
[1737215096965,0.473993,254.24,254.21,21.30278374]
[1737215097172,0.473993,254.24,254.23,21.30278374]
[1737215097549,0.473993,254.24,254.21,21.30278374]
[1737215098077,0.503993,254.24,254.21,21.30278374]
[1737215098261,0.503993,254.24,254.19,21.30278374]
[1737215098650,0.503993,254.24,254.21,21.30278374]
[1737215099151,0.503993,254.24,254.18,21.30278374]
[1737215099849,0.503993,254.24,254.0,0.063]
[1737215099850,0.503993,254.24,254.14,21.30278374]
[1737215100050,30.19414007,254.23,254.12,30.19414007]
[1737215100351,30.19414007,254.21,254.1,30.19414007]
[1737215100554,23.776884,254.12,254.02,30.19414007]
[1737215100852,0.503993,254.24,254.0,0.063]
[1737215100853,30.19414007,254.05,254.0,0.063]
[1737215101271,30.19414007,254.13,254.01,30.19414007]
[1737215101468,30.19414007,254.13,254.03,30.19414007]
[1737215101666,30.19414007,254.21,254.09,30.19414007]
[1737215101971,30.19414007,254.23,254.12,30.19414007]
[1737215102175,0.503993,254.24,254.0,0.65327592]
[1737215102176,0.503993,254.24,254.22,30.19414007]
[1737215102352,0.503993,254.24,254.23,30.78405213]
[1737215102770,0.503993,254.24,254.23,0.58991206]
[1737215103269,0.503993,254.24,254.11,0.5898328]
[1737215103472,0.503993,254.24,254.23,30.19414007]
[1737215104869,0.503993,254.24,254.13,20.0]
[1737215105053,0.503993,254.24,254.23,30.19414007]
[1737215108454,0.503993,254.24,254.23,60.38828014]
[1737215108656,0.503993,254.24,254.23,30.19414007]
[1737215109662,0.503993,254.24,254.23,60.38828014]
[1737215109969,0.503993,254.24,254.23,30.19414007]
[1737215110372,0.503993,254.24,254.23,60.38828014]
[1737215110558,0.503993,254.24,254.23,30.19414007]
[1737215112669,0.503993,254.24,254.23,60.38828014]
[1737215112873,0.503993,254.24,254.23,30.19414007]
[1737215113082,0.473993,254.24,254.23,30.19414007]
[1737215113583,0.473993,254.24,254.14,0.58986673]
[1737215113768,0.473993,254.24,254.08,3.5794]
[1737215113769,0.473993,254.24,254.23,30.19414007]
[1737215113971,0.473993,254.24,254.23,30.78396844]
[1737215114477,30.66813307,254.24,254.08,30.19414007]
[1737215114785,23.776884,254.23,254.08,30.19414007]
[1737215114981,30.19414007,254.22,254.1,30.19414007]
[1737215115174,4.407293,254.24,254.06,30.19414007]
[1737215115363,4.407293,254.24,254.03,15.738435]
[1737215115680,0.473993,254.24,254.17,30.19414007]
[1737215115865,0.473993,254.24,254.2,30.19414007]
[1737215116071,0.473993,254.24,254.22,30.19414007]
[1737215116682,0.473993,254.24,254.16,30.19414007]
[1737215116884,30.19414007,254.21,254.09,30.19414007]
[1737215117073,0.473993,254.24,254.13,30.19414007]
[1737215117272,0.473993,254.24,254.1,0.59017639]
[1737215117273,0.473993,254.24,254.17,30.19414007]
[1737215117474,0.473993,254.24,254.15,30.19414007]
[1737215117881,0.473993,254.24,254.17,30.19414007]
[1737215118194,30.19414007,254.19,254.07,30.19414007]
[1737215118477,30.19414007,254.08,253.88,30.19414007]
[1737215118683,30.19414007,254.1,253.8,30.19414007]
[1737215118684,30.19414007,254.04,253.92,30.19414007]
[1737215118871,23.776884,254.11,253.87,30.19414007]
[1737215119076,30.19414007,253.94,253.82,45.94508007]
[1737215119283,30.19414007,253.86,253.74,30.25714007]
[1737215119580,30.19414007,253.78,253.74,0.063]
[1737215119781,30.19414007,253.84,253.74,0.063]
[1737215120078,30.19414007,253.82,253.74,0.063]
[1737215120280,30.19414007,253.8,253.74,0.063]
[1737215120491,30.19414007,253.78,253.74,0.063]
[1737215120702,30.19414007,253.76,253.74,0.063]
[1737215121183,12.088,253.74,253.39,0.59149268]
[1737215121373,30.19414007,253.65,253.57,0.22621853]
[1737215121572,11.9,253.69,253.46,30.19414007]
[1737215121772,30.19414007,253.55,253.36,0.59178812]
[1737215121975,12.088,253.74,253.5,30.19414007]
[1737215122176,30.19414007,253.62,253.51,0.59166972]
[1737215122384,12.088,253.74,253.56,30.19414007]
[1737215122385,30.19414007,253.7,253.56,30.19414007]
[1737215122689,30.19414007,253.72,253.6,30.19414007]
[1737215122872,30.19414007,253.72,253.57,0.5914491]
[1737215122873,30.19414007,253.7,253.58,30.19414007]
[1737215123074,30.19414007,253.68,253.56,30.19414007]
[1737215123284,30.19414007,253.68,253.55,30.19414007]
[1737215123883,30.19414007,253.7,253.59,30.19414007]
[1737215124080,30.19414007,253.7,253.21,19.21276229]
[1737215124081,5.36141374,253.64,253.57,16.4956126]
[1737215124696,5.36141374,253.64,253.55,30.19414007]
[1737215124863,30.19414007,253.6,253.49,30.19414007]
[1737215125267,30.19414007,253.56,253.45,30.19414007]
[1737215125478,30.19414007,253.47,253.44,0.063]
[1737215125686,30.19414007,253.45,253.24,45.97911807]
[1737215125885,30.19414007,253.33,253.24,15.784978]
[1737215126472,30.19414007,253.37,253.24,30.19414007]
[1737215126670,45.98333107,253.5,253.2,30.19414007]
[1737215126875,30.19414007,253.41,253.29,30.19414007]
[1737215127083,30.19414007,253.37,253.26,30.19414007]
[1737215127276,30.19414007,253.39,253.27,0.5921574]
[1737215127589,30.19414007,253.43,253.32,30.19414007]
[1737215127792,30.19414007,253.45,253.33,0.59213179]
[1737215128094,30.19414007,253.39,253.27,30.19414007]
[1737215128295,30.19414007,253.33,253.23,37.18255994]
[1737215128590,30.19414007,253.36,253.24,30.19414007]
[1737215128790,30.19414007,253.29,253.23,6.98841987]
[1737215128981,30.19414007,253.27,253.23,6.98841987]
[1737215129188,34.14124007,253.35,253.23,6.98841987]
[1737215129189,30.19414007,253.25,253.23,6.98841987]
[1737215129782,30.19414007,253.27,253.23,6.98841987]
[1737215130102,30.19414007,253.33,253.23,6.98841987]
[1737215130296,30.19414007,253.27,253.23,6.98841987]
[1737215130500,30.19414007,253.31,253.23,6.98841987]
[1737215131005,30.19414007,253.34,253.26,20.0]
[1737215131303,30.19414007,253.34,253.24,30.19414007]
[1737215131498,30.19414007,253.34,253.23,6.98841987]
[1737215131673,30.19414007,253.44,253.32,30.19414007]
[1737215131982,6.07173232,253.56,253.42,30.19414007]
[1737215132187,10.01563232,253.56,253.24,0.5919166]
[1737215132499,30.19414007,253.42,253.24,0.5919166]
[1737215132798,30.19414007,253.42,253.3,30.19414007]
[1737215133000,30.19414007,253.4,253.28,30.19414007]
[1737215133191,30.19414007,253.38,253.26,30.19414007]
[1737215133392,30.19414007,253.36,253.24,30.19414007]
[1737215133881,30.19414007,253.38,253.26,30.19414007]
[1737215134082,30.19414007,253.4,253.28,30.19414007]
[1737215134385,30.19414007,253.44,253.32,30.19414007]
[1737215135284,19.7157,253.61,253.38,30.19414007]
[1737215135285,30.19414007,253.5,253.38,30.19414007]
[1737215135724,30.19414007,253.48,253.36,30.19414007]
[1737215135895,30.19414007,253.44,253.34,30.19414007]
[1737215136096,30.19414007,253.36,253.24,30.19414007]
[1737215136407,23.776884,253.33,253.23,6.98841987]
[1737215136709,30.19414007,253.34,253.23,6.98841987]
[1737215136886,30.19414007,253.34,253.26,0.063]
[1737215137192,30.19414007,253.3,253.26,0.063]
[1737215137398,30.19414007,253.28,253.26,0.063]
[1737215137703,42.09414007,253.28,253.23,6.98841987]
[1737215137897,42.09414007,253.24,253.23,3.01871987]
[1737215138105,42.09414007,253.24,253.07,30.25714007]
[1737215138405,30.19414007,253.16,253.07,0.063]
[1737215138777,30.19414007,253.08,253.07,0.063]
[1737215138983,53.97102407,253.08,253.07,0.063]
[1737215139602,30.19414007,253.08,253.07,0.063]
[1737215139898,30.19414007,253.14,253.08,3.9513]
[1737215140079,30.19414007,253.1,253.07,0.063]
[1737215140288,30.19414007,253.08,253.07,0.063]
[1737215141006,13.1556,253.34,253.07,0.063]
[1737215141007,30.19414007,253.18,253.07,0.063]
[1737215141177,30.19414007,253.18,253.07,4.0143]
[1737215141385,30.19414007,253.16,253.07,4.0143]
[1737215141595,30.19414007,253.16,253.07,4.0144]
[1737215141810,30.19414007,253.16,253.04,30.19414007]
[1737215141811,30.19414007,253.1,252.98,29.75714007]
[1737215141983,30.19414007,253.12,253.0,30.19414007]
[1737215142179,30.19414007,253.1,252.98,30.19414007]
[1737215142401,11.9,253.19,252.96,30.19414007]
[1737215142402,30.19414007,253.08,252.96,30.19414007]
[1737215142798,30.19414007,253.08,252.98,30.19414007]
[1737215143002,30.19414007,253.06,252.96,30.19414007]
[1737215143297,11.9,253.08,252.9,0.063]
[1737215143298,11.9,253.08,252.92,30.19414007]
[1737215143502,42.09414007,253.03,252.9,30.25714007]
[1737215143683,30.19414007,253.01,252.9,30.25714007]
[1737215143879,30.19414007,253.03,252.91,30.19414007]
[1737215144182,30.19414007,252.92,252.9,0.063]
[1737215144513,13.1556,253.08,252.9,0.063]
[1737215144514,30.19414007,253.0,252.9,0.063]
[1737215144816,30.19414007,252.96,252.9,0.063]
[1737215145199,30.19414007,252.93,252.9,0.063]
[1737215145613,30.50941528,252.91,252.9,0.063]
[1737215146114,20.0,252.87,252.81,0.063]
[1737215146318,13.2934,252.92,252.46,0.59369468]
[1737215146509,30.50941528,252.75,252.63,30.50941528]
[1737215146998,30.50941528,252.81,252.68,30.50941528]
[1737215147188,30.50941528,252.75,252.48,15.83142]
[1737215147389,30.50941528,252.9,252.31,216.24581146]
[1737215147390,30.50941528,252.71,252.6,30.50941528]
[1737215147597,30.50941528,252.62,252.54,3.9597]
[1737215147807,30.50941528,252.56,252.4,3.9619]
[1737215148008,30.50941528,252.56,252.32,0.65707077]
[1737215148009,30.50941528,252.56,252.48,3.9605]
[1737215148202,30.50941528,252.56,252.32,0.063]
[1737215148516,25.092,252.65,252.47,3.9607]
[1737215148815,3.9535,252.94,252.32,196.8674242]
[1737215149112,30.50941528,252.71,252.64,0.03]
[1737215149297,30.50941528,252.86,252.7,30.50941528]
[1737215149498,11.9,252.84,252.64,0.03]
[1737215149808,15.832734,252.86,252.64,0.03]
[1737215150114,13.192,252.95,252.64,0.03]
[1737215150495,11.9,252.94,252.64,0.03]
[1737215150702,30.53248759,252.92,252.8,30.53248759]
[1737215150990,16.7656,252.95,252.64,0.03]
[1737215150991,30.53248759,252.97,252.86,30.53248759]
[1737215151211,30.53248759,253.05,252.66,3.5736]
[1737215151416,30.53248759,253.05,252.64,0.03]
[1737215151417,15.823727,252.95,252.64,0.03]
[1737215151613,11.9,252.94,252.64,0.03]
[1737215151924,15.823727,252.95,252.64,0.03]
[1737215152123,15.823727,252.95,252.64,0.01]
[1737215152297,30.53248759,253.05,252.64,0.01]
[1737215152601,30.53248759,252.87,252.75,30.53248759]
[1737215152805,46.00608759,253.05,252.64,0.01]
[1737215152806,54.30937159,252.85,252.73,30.53248759]
[1737215153007,30.53248759,252.85,252.73,30.53248759]
[1737215153207,30.53248759,252.83,252.71,30.53248759]
[1737215153425,23.776884,252.78,252.67,30.53248759]
[1737215153823,30.53248759,252.77,252.64,0.01]
[1737215154124,30.53248759,252.85,252.72,30.53248759]
[1737215154295,30.53248759,252.89,252.78,30.53248759]
[1737215154494,30.53248759,252.98,252.86,30.53248759]
[1737215154693,30.53248759,252.98,252.75,30.53248759]
[1737215154694,15.4736,253.05,252.9,30.53248759]
[1737215154892,30.53248759,252.98,252.86,30.53248759]
[1737215155110,30.53248759,252.9,252.64,0.01]
[1737215155319,0.59363919,252.89,252.81,30.53248759]
[1737215155520,0.59363919,252.89,252.61,0.59341783]
[1737215155702,30.53248759,252.84,252.74,30.53248759]
[1737215155895,0.59363919,252.83,252.82,30.53248759]
[1737215156121,30.53248759,252.92,252.8,30.53248759]
[1737215156328,54.30937159,252.9,252.78,30.53248759]
[1737215156509,0.59363919,252.89,252.78,30.53248759]
[1737215156708,0.59363919,253.03,252.87,30.53248759]
[1737215157021,30.53248759,253.1,252.97,30.53248759]
[1737215157192,0.59363919,253.09,252.97,30.53248759]
[1737215157397,30.53248759,253.02,252.91,30.53248759]
[1737215157625,0.59363919,253.01,252.91,30.53248759]
[1737215158217,30.53248759,252.96,252.85,30.53248759]
[1737215158420,0.59363919,252.95,252.83,30.53248759]
[1737215158727,30.53248759,252.88,252.77,30.53248759]
[1737215159026,24.37052319,252.87,252.77,30.53248759]
[1737215159197,0.43543919,252.87,252.85,30.53248759]
[1737215159398,43.72448759,253.2,252.85,30.53248759]
[1737215159399,30.53248759,253.04,252.85,30.53248759]
[1737215159618,30.53248759,253.13,253.02,30.53248759]
[1737215159797,30.53248759,253.32,253.07,30.53248759]
[1737215159998,14.14464003,253.51,252.95,3.5736]
[1737215159999,0.27723919,253.31,253.08,0.59257647]
[1737215160211,15.794947,253.45,252.97,0.59232779]
[1737215160500,3.9467,253.37,252.97,0.59232779]
[1737215160739,0.27723919,253.36,252.97,0.59232779]
[1737215160995,30.80972678,253.36,253.24,30.53248759]
[1737215161204,30.53248759,253.32,253.2,30.53248759]
[1737215161531,0.27723919,253.31,253.23,30.53248759]
[1737215161702,0.03,253.38,253.06,0.59252193]
[1737215162017,0.063,253.29,253.06,0.59252193]
[1737215162240,0.063,253.29,253.08,20.0]
[1737215162400,0.063,253.29,253.09,0.59247294]
[1737215162924,0.03,253.38,253.28,61.06497518]
[1737215163114,0.03,253.38,253.37,30.53248759]
[1737215163501,0.03,253.38,253.3,30.53248759]
[1737215163906,30.53248759,253.34,253.22,30.53248759]
[1737215164102,30.53248759,253.32,253.2,30.53248759]
[1737215164327,0.27723919,253.31,253.22,30.53248759]
[1737215164621,30.53248759,253.23,252.98,12.47]
[1737215164829,30.53248759,253.21,253.09,30.53248759]
[1737215165123,30.53248759,253.19,253.07,30.53248759]
[1737215165310,0.27723919,253.18,253.07,30.53248759]
[1737215165508,30.53248759,253.26,253.13,30.53248759]
[1737215165735,30.53248759,253.2,253.09,30.53248759]
[1737215166022,0.27723919,253.19,253.1,30.53248759]
[1737215166221,0.27723919,253.19,252.99,0.59275082]
[1737215166222,0.27723919,253.19,253.14,30.53248759]
[1737215166424,30.53248759,253.21,253.08,30.53248759]
[1737215166627,0.27723919,253.2,253.08,30.53248759]
[1737215166812,0.27723919,253.2,253.12,30.53248759]
[1737215167009,0.27723919,253.2,253.1,30.53248759]
[1737215167212,30.53248759,253.19,253.08,30.53248759]
[1737215167417,0.27723919,253.18,253.14,30.53248759]
[1737215167618,0.27723919,253.26,252.94,3.5736]
[1737215167914,0.27723919,253.26,252.95,0.59286068]
[1737215168107,30.53248759,253.13,252.96,0.59295324]
[1737215168307,30.53248759,253.13,252.84,12.47]
[1737215168308,0.27723919,253.12,252.85,0.59295324]
[1737215168522,30.53248759,253.1,252.98,30.53248759]
[1737215168721,0.27723919,253.09,253.02,30.53248759]
[1737215168921,0.27723919,253.13,252.91,0.59279109]
[1737215169116,0.27723919,253.16,253.1,30.53248759]
[1737215169321,30.53248759,253.19,253.08,30.53248759]
[1737215169624,0.27723919,253.18,253.07,30.53248759]
[1737215169829,30.53248759,253.17,253.05,30.53248759]
[1737215170027,0.27723919,253.34,253.16,30.53248759]
[1737215170226,0.30723919,253.38,253.28,30.53248759]
[1737215170437,0.30723919,253.38,253.17,0.59219634]
[1737215170614,30.83972678,253.38,253.26,30.53248759]
[1737215170814,0.30723919,253.38,253.26,30.53248759]
[1737215171014,0.03,253.38,253.26,30.53248759]
[1737215171219,0.03,253.38,253.28,30.53248759]
[1737215171514,0.30723919,253.38,253.33,30.53248759]
[1737215171715,0.03,253.38,253.37,30.53248759]
[1737215171927,0.03,253.38,253.37,20.59181472]
[1737215172111,0.03,253.38,253.37,50.53248759]
[1737215172430,6.07173232,253.51,253.37,51.1243759]
[1737215172612,6.07173232,253.51,253.5,30.53248759]
[1737215172813,0.30723919,253.64,253.5,61.06497518]
[1737215173012,0.03,253.64,253.52,30.53248759]
[1737215173334,0.03,253.64,253.63,30.53248759]
[1737215173518,0.03,253.64,253.63,84.84185918]
[1737215173717,47.29684228,253.69,253.67,23.776884]
[1737215173913,47.29684228,253.69,253.68,30.53248759]
[1737215174811,30.53248759,253.85,253.68,30.53248759]
[1737215175010,30.53248759,253.83,253.71,30.53248759]
[1737215175233,30.53248759,253.77,253.65,30.53248759]
[1737215175536,0.27723919,253.76,253.69,30.53248759]
[1737215175718,30.53248759,253.79,253.67,30.53248759]
[1737215176029,30.53248759,253.77,253.66,16.86563653]
[1737215176226,30.53248759,253.95,253.67,31.12372436]
[1737215176227,0.27723919,253.76,253.67,31.12372436]
[1737215176428,0.27723919,253.78,253.67,30.53248759]
[1737215176635,30.53248759,253.77,253.66,16.86563653]
[1737215176833,0.27723919,253.76,253.66,16.86563653]
[1737215177033,0.27723919,253.76,253.67,30.53248759]
[1737215177215,0.27723919,253.76,253.66,17.45694408]
[1737215177216,30.53248759,253.68,253.66,16.86563653]
[1737215177414,30.53248759,253.71,253.66,16.86563653]
[1737215178032,30.53248759,253.71,253.65,33.09701339]
[1737215178222,30.53248759,253.67,253.65,33.09701339]
[1737215178419,61.06497518,253.66,253.65,29.12941339]
[1737215178736,61.06497518,253.66,253.52,16.86563653]
[1737215178737,15.78922335,253.65,253.53,19.23086492]
[1737215178927,2.550526,253.54,253.53,0.22625422]
[1737215179134,3.5965,253.78,253.5,10.93621665]
[1737215179337,30.53248759,253.54,253.5,10.93621665]
[1737215179738,30.53248759,253.52,253.5,10.93621665]
[1737215181023,23.776884,253.51,253.5,10.93621665]
[1737215181338,54.30937159,253.51,253.5,4.65828045]
[1737215181655,58.25397159,253.51,253.3,0.59199861]
[1737215181822,30.53248759,253.42,253.31,30.53248759]
[1737215182018,30.53248759,253.44,253.33,30.53248759]
[1737215182341,30.53248759,253.48,253.35,30.53248759]
[1737215182639,30.53248759,253.49,253.37,30.53248759]
[1737215182822,30.53248759,253.53,253.41,30.53248759]
[1737215183031,30.53248759,253.57,253.45,30.53248759]
[1737215183226,12.4742,253.77,253.55,17.90489055]
[1737215183448,12.4742,253.77,253.46,0.59173929]
[1737215183449,30.53248759,253.59,253.47,30.53248759]
[1737215183621,30.53248759,253.48,253.24,4.47859672]
[1737215183820,30.53248759,253.46,253.34,30.53248759]
[1737215184640,30.53248759,253.44,253.33,0.03]
[1737215184941,30.53248759,253.35,253.33,0.03]
[1737215185314,23.776884,253.34,253.24,0.03]
[1737215185518,54.30937159,253.25,253.24,0.03]
[1737215185719,58.25797159,253.25,253.24,0.03]
[1737215185919,30.53248759,253.25,253.24,0.03]
[1737215186134,30.53248759,253.35,253.11,0.59258328]